Cogmind - Beta 9.6 @@@ ROGUE MODE // 2020.04.16 @ 10:22:01 Player: OccultOnion Result: Destroyed by G-47 Trooper with Particle Gun Performance ------------- Evolutions (2) 1000 Regions Visited (3) 600 Robots Destroyed (32) 160 Value Destroyed (1144) 1144 Prototype IDs (0) 0 Alien Tech Used (0) 0 Bonus (53) 53 TOTAL SCORE: 2957 Bonus ------- High Alert Combat Kills 53 Cogmind --------- Core Integrity 0/550 Matter 289/300 Energy 99/100 System Corruption 0% Temperature Cool (9) Movement Core (50) Location -8/Materials Parts ------- > --- POWER (1) -------- (None) > --- PROPULSION (4) --- (None) > --- UTILITY (4) ------ (None) > --- WEAPON (2) ------- (None) > --- INVENTORY (4) ---- Improved Ion Engine Light Nuclear Core Large Storage Unit Advanced Signal Interpreter Peak State ------------ > --- POWER ------------ Light Nuclear Core > --- PROPULSION ------- Light Treads Aluminum Leg Carbon-fiber Leg > --- UTILITY ---------- Heat Sink Small Storage Unit Large Storage Unit Weapon Shielding > --- WEAPON ----------- EM Pulse Cannon Ion Cannon > --- INVENTORY -------- Light Ion Engine Improved Ion Engine Light Treads Improved Heat Sink Large Storage Unit Advanced Signal Interpreter Salvage Targeting Computer Integration Mediator Small Laser Particle Gun Heavy Particle Cannon [Rating: 20] Favorites ----------- Power Light Ion Engine Engine Light Ion Engine Power Core Light Nuclear Core Propulsion Aluminum Leg Treads Light Treads Leg Aluminum Leg Utility Small Storage Unit Device Heat Sink Storage Small Storage Unit Protection Weapon Shielding Weapon EM Pulse Gun Energy Gun EM Pulse Gun Energy Cannon Ion Cannon Ballistic Gun Light Assault Rifle Launcher Grenade Launcher Build | -11 -10 -9 -8 ------- Run | Scr Mat Mat Mat Slots Evolved 4 | . . 2 2 Power . | . . . . Propulsion 2 | . . 1 1 Utility 2 | . . 1 1 Weapon . | . . . . Parts Attached 28 | 2 8 2 16 Power 3 | . . . 3 Engine . | . . . . Core 3 | . . . 3 Reactor . | . . . . Propulsion 9 | . 2 1 6 Treads 3 | . . 1 2 Leg 6 | . 2 . 4 Wheel . | . . . . Hover . | . . . . Flight . | . . . . Utility 4 | 1 1 1 1 Device 1 | . . . 1 Storage 2 | 1 1 . . Processor . | . . . . Hackware . | . . . . Protection 1 | . . 1 . Artifact . | . . . . Weapon 12 | 1 5 . 6 Energy Gun 6 | 1 2 . 3 Energy Cannon 3 | . . . 3 Ballistic Gun . | . . . . Ballistic Cannon . | . . . . Launcher 3 | . 3 . . Special Weapon . | . . . . Impact Weapon . | . . . . Slashing Weapon . | . . . . Piercing Weapon . | . . . . Special Melee Weapon . | . . . . Unidentified Prototypes . | . . . . Parts Lost 19 | . . . 19 Power 4 | . . . 4 Propulsion 6 | . . . 6 Utility 2 | . . . 2 Weapon 7 | . . . 7 Highest Loss Streak 8 | . . . 8 Average Slot Usage (%) 86 | . 100 100 68 Engine 7 | . 14 11 1 Core 1 | . . . 3 Treads 6 | . . 11 6 Leg 21 | . 28 22 17 Device 2 | . . . 5 Storage 21 | . 28 22 17 Protection 5 | . . 11 5 Energy Gun 11 | . 24 11 3 Energy Cannon 2 | . . . 5 Launcher 5 | . 3 11 3 Naked Turns 7 | . . . 7 Heaviest Build 39 | 14 28 29 39 Greatest Support 35 | 20 20 20 35 Greatest Overweight (x) 8 | . 1 1 8 Average Overweight (x) . | . . 1 . Largest Inventory Capacity 12 | 8 12 12 12 Average Capacity 11 | 6 10 12 11 Most Carried 12 | 6 12 12 12 Average Carried 9 | 5 8 11 9 Final Capacity 12 | 8 12 12 4 Final Carried 12 | 6 12 12 4 Class Distribution -------------------- 74% | Mutant 25% | Scavenger-Mutant Dominant Class ---------------- Mutant | -10/Materials Mutant | -9/Materials Scavenger-Mutant | -8/Materials Resources | -11 -10 -9 -8 ----------- Run | Scr Mat Mat Mat Matter Collected 599 | 223 80 77 219 Remotely . | . . . . Salvage Created 1060 | 78 87 129 766 Parts 65 | 1 9 7 48 Haulers Intercepted . | . . . . Recyclers Shooed . | . . . . Parts Field Recycled . | . . . . Retrieved Matter . | . . . . Parts Self-Destructed . | . . . . Prevented . | . . . . Kills | -11 -10 -9 -8 ------- Run | Scr Mat Mat Mat Combat Hostiles Destroyed 28 | . 5 3 20 Guns 3 | . . . 3 Cannons 9 | . . . 9 AOE 16 | . 5 3 8 Classes Destroyed 9 | 1 2 2 4 Worker 1 | . . . 1 Builder 1 | . . . 1 Recycler 1 | 1 . . . Watcher 1 | . . 1 . Swarmer 6 | . 3 . 3 Grunt 13 | . 2 . 11 Brawler 1 | . . . 1 Duelist 1 | . . . 1 Sentry 7 | . . 3 4 Best Kill Streak 5 | 1 3 2 5 Combat Bots Only 4 | . 3 1 4 Max Kills in Single Turn 3 | 1 3 1 3 Gunslinging . | . . . . Exploded 3 | . 3 1 2 Melee . | . . . . Uniques/NPCs Destroyed . | . . . . Combat | -11 -10 -9 -8 -------- Run | Scr Mat Mat Mat Damage Taken 2430 | . 351 124 1955 Core 678 | . 108 18 552 Absorbed by Shields . | . . . . Core Remaining (%) 83 | 100 56 95 . Volleys Fired 64 | 8 5 7 44 Largest 2 | 2 2 2 2 Hottest 123 | 80 80 70 123 Shots Fired 103 | 16 10 14 63 Gun 52 | 16 7 7 22 Cannon 28 | . . . 28 Launcher 23 | . 3 7 13 Special . | . . . . Kinetic 3 | 3 . . . Thermal 41 | 8 2 . 31 Explosive 23 | . 3 7 13 Electromagnetic 36 | 5 5 7 19 Robot Hit Streak 15 | 3 2 5 15 Robot Miss Streak 3 | 3 2 1 3 Penetration Max . | . . . . Secondary Targets . | . . . . Shots Hit Robots 59 | 8 2 5 44 Core Hits 60 | 2 7 7 44 Critical Hits . | . . . . Critical Kills . | . . . . Critical Parts Destroyed . | . . . . Melee Attacks . | . . . . Impact . | . . . . Slashing . | . . . . Piercing . | . . . . Sneak Attacks . | . . . . Combat Hostiles . | . . . . Follow-up Attacks . | . . . . Damage Inflicted 2214 | 79 205 164 1766 Guns 351 | 79 25 21 226 Cannons 570 | . . . 570 Explosions 1293 | . 180 143 970 Melee . | . . . . Ramming . | . . . . Kinetic 15 | 15 . . . Thermal 555 | 34 . . 521 Explosive 1232 | . 180 143 909 Electromagnetic 412 | 30 25 21 336 Impact . | . . . . Slashing . | . . . . Piercing . | . . . . Highest Corruption . | . . . . Average Corruption . | . . . . Corruption Purged . | . . . . Overload Shots . | . . . . Overflow Damage 67 | . . . 67 Projectiles 5 | . . . 5 Explosions 62 | . . . 62 Melee . | . . . . Knockbacks . | . . . . Impact . | . . . . Kinetic . | . . . . Secondary . | . . . . Self-Inflicted Damage 97 | . . . 97 Shots 3 | . . . 3 Rammed 2 | . . . 2 Targets Rammed 2 | . . . 2 Kicked . | . . . . Crushed . | . . . . Highest Temperature 209 | 72 36 27 209 Average Temperature 60 | 29 12 16 83 Received Heat Transfer 891 | . 9 45 837 Siege Activations . | . . . . Robots Corrupted . | . . . . Combat Hostiles . | . . . . Parts Fried 1 | . . . 1 Impact Corruptions . | . . . . Robots Melted . | . . . . Combat Hostiles . | . . . . Parts Melted 1 | . . . 1 Heat Transferred 927 | 75 . . 852 Parts Sabotaged . | . . . . Parts Stolen . | . . . . Parts Stripped . | . . . . Power Chain Reactions 1 | . . . 1 Missiles Intercepted . | . . . . Alert | -11 -10 -9 -8 ------- Run | Scr Mat Mat Mat Peak Influence 603 | 5 129 253 603 Average Influence 171 | 1 69 163 255 Maximum Alert Level 2 | . . 1 2 Low Security (%) 66 | 100 100 80 34 Level 1 25 | . . 19 47 Level 2 7 | . . . 17 Level 3 . | . . . . Level 4 . | . . . . Level 5 . | . . . . High Security . | . . . . Max Security . | . . . . Squads Dispatched 4 | . . . 4 Investigation . | . . . . Extermination . | . . . . Reinforcement 4 | . . . 4 Assault . | . . . . Garrison . | . . . . Intercept . | . . . . Construction Impeded . | . . . . Haulers Reinforced . | . . . . Stealth | -11 -10 -9 -8 --------- Run | Scr Mat Mat Mat Distress Signals 3 | . . 1 2 Communications Jammed . | . . . . Distress Signals . | . . . . Times Spotted 51 | . 5 6 40 Peak Tracking Total 9 | . 3 2 9 Tactical Retreats 3 | . . . 3 Traps | -11 -10 -9 -8 ------- Run | Scr Mat Mat Mat Traps Triggered . | . . . . Indirectly . | . . . . Trap Hack Attempts . | . . . . Triggered . | . . . . Disarmed . | . . . . Reprogrammed . | . . . . Reused . | . . . . Traps Extracted . | . . . . Installed . | . . . . Triggered . | . . . . Machines | -11 -10 -9 -8 ---------- Run | Scr Mat Mat Mat Machines Disabled 6 | . . 2 4 Max in Single Turn 3 | . . 1 3 Machines Sabotaged . | . . . . Garrisons Compromised . | . . . . Overloaded Fab Kills . | . . . . Fab Network Shutdowns . | . . . . Hacking | -11 -10 -9 -8 --------- Run | Scr Mat Mat Mat Machines Accessed 6 | . 1 3 2 Terminals 6 | . 1 3 2 Fabricators . | . . . . Repair Stations . | . . . . Recycling Units . | . . . . Scanalyzers . | . . . . Garrison Access . | . . . . Total Hacks 17 | . 3 6 8 Successful 11 | . 2 4 5 Failed 6 | . 1 2 3 Catastrophic 2 | . . 1 1 Database Lockouts . | . . . . Manual 10 | . 2 5 3 Terminals 17 | . 3 6 8 Fabricators . | . . . . Repair Stations . | . . . . Recycling Units . | . . . . Scanalyzers . | . . . . Garrison Access . | . . . . Terminal Hacks 8 | . 2 1 5 Robot Analysis 2 | . 2 . . Alert Level 1 | . . . 1 Unreport Threat 3 | . . . 3 Zone Layout 2 | . . 1 1 Fabricator Hacks . | . . . . Repair Station Hacks . | . . . . Recycling Unit Hacks . | . . . . Scanalyzer . | . . . . Garrison Access Hacks . | . . . . Unauthorized Hacks 3 | . . 3 . Terminals 3 | . . 3 . Track 1 | . . 1 . Assimilate 1 | . . 1 . Botnet 1 | . . 1 . Fabricators . | . . . . Repair Stations . | . . . . Recycling Units . | . . . . Scanalyzers . | . . . . Garrison Access . | . . . . Data Cores Recovered . | . . . . Used . | . . . . Hacking Detections 6 | . 1 3 2 Full Trace Events . | . . . . Feedback Events . | . . . . Feedback Blocked . | . . . . Robot Schematics Acquired . | . . . . Robots Built . | . . . . Matter . | . . . . Time . | . . . . Total Robot Build Rating . | . . . . Part Schematics Acquired . | . . . . Parts Built . | . . . . Matter . | . . . . Time . | . . . . Total Part Build Rating . | . . . . Parts Repaired . | . . . . Time . | . . . . Parts Recycled . | . . . . Recycled Matter . | . . . . Retrieved Matter . | . . . . Retrieved Components . | . . . . Parts Scanalyzed . | . . . . Part Schematics Acquired . | . . . . Parts Damaged . | . . . . Bothacking | -11 -10 -9 -8 ------------ Run | Scr Mat Mat Mat Used RIF Installer . | . . . . Robots Hacked . | . . . . Non-combat . | . . . . Combat . | . . . . Robot Hacks Applied . | . . . . Relay Couplers Released . | . . . . Robots Rewired . | . . . . Allies Hacked . | . . . . Hacks Repelled . | . . . . Allies | -11 -10 -9 -8 -------- Run | Scr Mat Mat Mat Total Allies . | . . . . Largest Group . | . . . . Highest-Rated Group . | . . . . Highest-Rated Ally . | . . . . Total Orders . | . . . . Ally Attacks . | . . . . Total Damage . | . . . . Kills . | . . . . Allies Corrupted . | . . . . Allies Melted . | . . . . Intel | -11 -10 -9 -8 ------- Run | Scr Mat Mat Mat Robot Analysis Total 2 | . 2 . . Derelict Logs Recovered . | . . . . Drone Launches . | . . . . Drone Recoveries . | . . . . Exploration | -11 -10 -9 -8 ------------- Run | Scr Mat Mat Mat Turns Passed 1151 | 62 268 341 480 Spaces Moved 628 | 29 166 208 225 Core 14 | . . . 14 Treads 2 | . . . 2 Legs 612 | 29 166 208 209 Wheels . | . . . . Hover . | . . . . Flight . | . . . . Fastest Speed 50 | 120 120 150 50 Average Speed 142 | 120 138 150 141 Slowest Speed 450 | 120 150 150 450 Overloaded Moves . | . . . . Propulsion Burnouts . | . . . . Robots Hopped . | . . . . Cave-ins Triggered 1 | . 1 . . Exploration Rate (%) 22 | 4 29 28 30 Regions Visited 3 Branch Regions . Pre-discovered Areas . | . . . . Known Exits Taken . | . . . . Unknown Exits Taken 3 | 1 1 1 . Scrap Searched . | . . . . Spaces Dug 13 | . 13 . . Terrain Destroyed 196 | . 20 51 125 Melee . | . . . . Projectile 3 | . . . 3 AOE 193 | . 20 51 122 Actions | -11 -10 -9 -8 --------- Run | Scr Mat Mat Mat Total 791 | 41 194 225 331 Wait 18 | . . 3 15 Move 625 | 28 165 207 225 Hop . | . . . . Pick Up 32 | 2 11 4 15 Fast Attach . | . . . . Attach 17 | 1 . 2 14 Detach 1 | . . . 1 Swap 11 | 1 8 . 2 Drop 21 | 1 5 2 13 Fire 64 | 8 5 7 44 Melee . | . . . . Ram 2 | . . . 2 Kick . | . . . . Crush . | . . . . Escape Stasis . | . . . . Rewire . | . . . . Trap . | . . . . Miscellaneous . | . . . . Route ------- -11/Scrapyard -10/Materials -9/Materials (discovered 2 exits: *Mat / [*Min]) -8/Materials History --------- Turn | Location | Event 10 | -11/Scrapyard | Discovered new exit (range 2) 63 | -11/Scrapyard | Entered Materials 284 | -10/Materials | Crushed by falling debris 291 | -10/Materials | Discovered new exit (range 12) 327 | -10/Materials | Build established: Mutant 331 | -10/Materials | Entered another Materials area 331 | -9/Materials | Evolved 2 slots: Propulsion x1, Utility x1 445 | -9/Materials | Discovered new exit (range 12) 637 | -9/Materials | Discovered new exit (range 9) 672 | -9/Materials | Entered another Materials area 672 | -8/Materials | Evolved 2 slots: Propulsion x1, Utility x1 884 | -8/Materials | Lost 3 parts (1p1n1w) 998 | -8/Materials | Lost 8 parts (1p2n2u3w) 1007 | -8/Materials | Core integrity fell below 50% 1039 | -8/Materials | Lost 3 parts (2n1w) 1146 | -8/Materials | Core integrity fell below 20% 1152 | -8/Materials | Destroyed by G-47 Trooper with Particle Gun Last Messages --------------- 01090_ Acquired Electrolaser. 01091_ U-05 Engineer lays Concrete. 01091_ Penetrated by Slug. 01091_ Hvy. Particle Cannon destroyed. 01097_ Penetrated by Slug. 01135_ Atomic Centrifuge disabled. 01136_ Aluminum Leg destroyed. 01140_ Lgt. Nuclear Core destroyed. 01141_ Dropped Sml. Storage Unit. 01142_ Dropped Integration Mediator. 01142_ Dropped Lgt. Ion Engine. 01143_ Dropped Imp. Heat Sink. 01143_ Dropped Salvage Targeting Computer. 01144_ Dropped Lrg. Storage Unit. 01144_ Dropped Electrolaser. 01145_ Dropped Aluminum Leg. 01145_ Slug penetrates Atomic Centrifuge. 01145_ Slammed into G-47 Trooper. 01147_ K-01 Serf collects debris. 01148_ Slug penetrates Door. Map ----- +----------------------------------------------------+ | # #T ! #" %=== ### #??## | | # ## ^ ######+### ### !!#??# | | #+####### ####% #######= !!#??### | | # [ % ==#????# ! | | + ] * ==#????# ! | | # %%% !!#????# ! | | ####+########"T"###### ###+### ### !!#????# | | # #?#####????## ## [""" ?#####????# | | # """ """ #???????????# # "T" ??????????# = | | # """ """ #???????????# # !! ??????????# | | # """ """ #????######## # = ??????????## | | # """ """ #????#^ ##= ????????????????# | | # """ """ ###### # ?????????????????## | | # + ^ #?????????????????????## | | # #######+##### #??????????????????????? | | ###########???# # #??????????????????????? | | ??????????????# """ # #??????????????????????? | | ??????????????# """[gg #??????????????????????? | | ??????????????# ! !#g #??????????????????????? | | ??????????????# =!*!!# #??????????????????????? | | ??????????????######### #??????????????????????? | | ??????????????????????# #??????????????????????? | | ??????????????????????# #??????????????????????? | | ??????????????????????# #??????????????????????? | | ??????????????????????# #??????????????????????? | | ??????????????????????# @#??????????????????????? | | ??????????????????????+ +??????????????????????? | | ??????????????????????# #??????????????????????? | | ??????????????????????## ##??????????????????????? | | ???????????????????????# ????????????????????????? | | ???????????????????????# ????????????????????????? | | ???????????????????????#/????????????????????????? | | ???????????????????????kk????????????????????????? | | ??????????????????????? ????????????????????????? | | ??????????????????????? ????????????????????????? | | ??????????????????????? ????????????????????????? | | ??????????????????????k ?????????????????????????? | | ?????????????????????? ?????????????????????????? | | ?????????????????????? ?????????????????????????? | | ??????????????????????k ?????????????????????????? | | ?????????????????????????????????????????????????? | | ?????????????????????????????????????????????????? | | ?????????????????????????????????????????????????? | | ?????????????????????????????????????????????????? | | ?????????????????????????????????????????????????? | | ?????????????????????????????????????????????????? | | ?????????????????????????????????????????????????? | | ?????????????????????????????????????????????????? | | ?????????????????????????????????????????????????? | | ?????????????????????????????????????????????????? | +----------------------------------------------------+ Best States ------------- Heat Dissipation 41 Energy Generation 14 Energy Capacity 160 Matter Stores 300 Matter Capacity 300 Sight Range 16 Terrain Scan Density 10 Weapon Shielding 33 Evasion (%) 50 Recoil Reduction 1 Item Schematics ----------------- None Robot Schematics ------------------ None Fabricated ------------ Nothing Alien Tech Used ----------------- None Achievements -------------- None Challenges ------------ None Game ------ Seed IntegrityRecoilRegenerator Manual? 0 Play Time 00:16:44 Cumulative 49.2 hours Start 2020.04.16 @ 10:06:45 End 2020.04.16 @ 10:22:01 Sessions 1 Manual Loads 0 Difficulty Rogue Special Mode None Game No. 124 Rogue 124 Adventurer 0 Explorer 0 Win Type - Total 0 Types 0/0/0/0/0/0/0 Lore% 27 Gallery% 45 Achievement% 30 Wizard Run 0 Options --------- ASCII 0 Keyboard 1 Movement Numpad Keybinds 0 Fullscreen 2 Font 18/SmallcapsGlow Map View 76x50 Tactical HUD 1 Map Filters NONE Filters NONE Steam 1 RUN: 5607735e-37c8-4eaf-94f8-82d681d013b7